[Event "BL 2016-17"]
[Site "St. Veit/Glan"]
[Date "2017.03.25"]
[Round "7"]
[White "Kvetny, Mark"]
[Black "Kreisl, Robert"]
[Result "1/2-1/2"]
[ECO "D90"]
[WhiteElo "2372"]
[BlackElo "2426"]
[Annotator "NA"]
[PlyCount "60"]
[EventDate "2017.??.??"]
[EventType "team-tourn"]
[EventCountry "AUT"]
[SourceTitle "playchess.com"]
[Source "ChessBase"]
[SourceQuality "1"]
[WhiteTeam "Götzis"]
[BlackTeam "Maria Saal"]
[TimeControl "40/5400+30:1800+30"]

1. d4 {[%emt 0:00:00]} Nf6 {[%emt 0:00:11]} 2. c4 {[%emt 0:00:00]} g6 {[%emt 0:00:07]} 3. Nc3 {[%emt 0:00:00]} d5 {[%emt 0:00:05]} 4. Nf3 {[%emt 0:00:10]} Bg7 {[%emt 0:00:15]} 5. h4 {[%emt 0:00:12]} c6 {[%emt 0:03:19]} 6. cxd5 {[%emt 0:00:28]} cxd5 {[%emt 0:00:05]} 7. Bf4 {[%emt 0:00:10]} Nc6 {[%emt 0:00:22]} 8. e3 {[%emt 0:00:29]} O-O {[%emt 0:01:01]} 9. Qb3 {[%emt 0:00:27]} Na5 {[%emt 0:03:42]} 10. Qa3 {[%emt 0:00:22]} Bf5 {[%emt 0:07:35]} 11. Be2 {[%emt 0:02:18]} Ne4 {[%emt 0:10:20]} 12. Rc1 {[%emt 0:05:06]} Rc8 {[%emt 0:07:26]} 13. O-O {[%emt 0:04:51]} Nxc3 {[%emt 0:04:59]} 14. Rxc3 {[%emt 0:00:39]} Rxc3 {[%emt 0:00:36]} 15. Qxc3 {[%emt 0:02:37]} Nc6 {[%emt 0:06:17]} 16. b4 {[%emt 0:03:50]} a6 {[%emt 0:07:23]} 17. a4 {[%emt 0:05:04]} Qc8 {[%emt 0:07:12]} 18. Qd2 {[%emt 0:13:22]} Qa8 {[%emt 0:12:20]} 19. Rc1 {[%emt 0:16:37]} Rc8 {[%emt 0:00:46]} 20. b5 {[%emt 0:02:48]} axb5 {[%emt 0:00:05]} 21. axb5 {[%emt 0:00:59]} Nd8 {[%emt 0:00:14]} 22. Bc7 {[%emt 0:02:26]} Ne6 {[%emt 0:01:57]} 23. b6 {[%emt 0:04:57]} Nxc7 {[%emt 0:06:15]} 24. bxc7 {[%emt 0:01:12]} Qa3 {[%emt 0:02:09]} 25. Bb5 {[%emt 0:06:52]} Qd6 {[%emt 0:06:38]} 26. Qa5 {[%emt 0:03:03]} Bf8 {[%emt 0:00:17]} 27. Rc3 {[%emt 0:09:15]} f6 {[%emt 0:02:03]} 28. Ne1 {[%emt 0:07:54]} e5 {[%emt 0:00:36]} 29. Nd3 {[%emt 0:01:11]} Kg7 {[%emt 0:03:59]} 30. g3 {[%emt 0:03:19]} Be7 1/2-1/2

[Event "BL 2016-17"]
[Site "Germany"]
[Date "2017.02.18"]
[Round "7"]
[White "Baskin, Robert"]
[Black "Lauber, Arnd"]
[Result "0-1"]
[ECO "C05"]
[WhiteElo "2357"]
[BlackElo "2424"]
[Annotator "RC"]
[PlyCount "70"]
[EventDate "2017.??.??"]
[EventType "team-tourn"]
[EventCountry "GER"]
[SourceTitle "playchess.com"]
[Source "ChessBase"]
[SourceQuality "1"]
[WhiteTeam "Griesheim"]
[BlackTeam "SF Berlin"]
[TimeControl "40/6000+30:3000+30"]

1. e4 {[%emt 0:00:00]} e6 {[%emt 0:00:14]} 2. d4 {[%emt 0:00:03]} d5 {[%emt 0:00:06]} 3. Nd2 {[%emt 0:01:03]} Nf6 {[%emt 0:01:01]} 4. e5 {[%emt 0:00:17]} Nfd7 {[%emt 0:00:05]} 5. Bd3 {[%emt 0:00:16]} c5 {[%emt 0:00:32]} 6. c3 {[%emt 0:00:07]} Nc6 {[%emt 0:00:25]} 7. Ne2 {[%emt 0:00:06]} Be7 {[%emt 0:08:07]} 8. O-O {[%emt 0:02:22]} a5 {[%emt 0:00:28]} 9. f4 {[%emt 0:03:53]} cxd4 {[%emt 0:02:24]} 10. cxd4 {[%emt 0:00:17]} Nb6 {[%emt 0:01:02]} 11. Nf3 {[%emt 0:07:08]} a4 {[%emt 0:00:18]} 12. g4 {[%emt 0:04:12]} Nc4 {[%emt 0:18:52]} 13. Rb1 {[%emt 0:15:05]} Nb4 {[%emt 0:29:19]} 14. b3 {[%emt 0:01:41]} axb3 {[%emt 0:06:59]} 15. axb3 {[%emt 0:00:14]} Na5 {[%emt 0:07:30]} 16. Ba3 {[%emt 0:07:41]} Nac6 {[%emt 0:04:11]} 17. Bxb4 {[%emt 0:01:49]} Nxb4 {[%emt 0:00:04]} 18. f5 {[%emt 0:01:07]} O-O {[%emt 0:06:20]} 19. Nf4 {[%emt 0:04:48]} Bg5 {[%emt 0:03:22]} 20. Nh5 {[%emt 0:12:48]} Nxd3 {[%emt 0:03:02]} 21. Qxd3 {[%emt 0:00:18]} exf5 {[%emt 0:00:15]} 22. gxf5 {[%emt 0:00:33]} g6 {[%emt 0:00:12]} 23. Ng3 {[%emt 0:04:10]} Bf4 {[%emt 0:00:39]} 24. e6 {[%emt 0:07:14]} Bxg3 {[%emt 0:01:41]} 25. hxg3 {[%emt 0:00:16]} gxf5 {[%emt 0:00:18]} 26. exf7+ {[%emt 0:11:51]} Rxf7 {[%emt 0:00:08]} 27. Rbe1 {[%emt 0:01:01]} Rg7 {[%emt 0:02:23]} 28. Qb5 {[%emt 0:01:52]} Bd7 {[%emt 0:00:36]} 29. Qxd5+ {[%emt 0:02:10]} Kh8 {[%emt 0:00:06]} 30. Ne5 {[%emt 0:05:22]} Rxg3+ {[%emt 0:01:13]} 31. Kf2 {[%emt 0:00:55]} Qh4 {[%emt 0:09:36]} 32. Nf7+ {[%emt 0:13:25]} Kg7 {[%emt 0:00:09]} 33. Qe5+ {[%emt 0:00:59]} Kxf7 {[%emt 0:00:11]} 34. Qd5+ {[%emt 0:00:47]} Kg6 {[%emt 0:00:37]} 35. Qd6+ {[%emt 0:00:58]} Kh5 {[%emt 0:00:16]} 0-1

[Event "BL 2016-17"]
[Site "St. Veit/Glan"]
[Date "2017.03.25"]
[Round "7"]
[White "Repkova, Eva"]
[Black "Deglmann, Ludwig"]
[Result "0-1"]
[ECO "C00"]
[WhiteElo "2328"]
[BlackElo "2300"]
[Annotator "NA"]
[PlyCount "94"]
[EventDate "2017.??.??"]
[EventType "team-tourn"]
[EventCountry "AUT"]
[SourceTitle "playchess.com"]
[Source "ChessBase"]
[SourceQuality "1"]
[WhiteTeam "Bregenz"]
[BlackTeam "Absam"]
[TimeControl "40/5400+30:1800+30"]

1. e4 {[%emt 0:00:00]} e6 {[%emt 0:00:18]} 2. b3 {[%emt 0:00:00]} d5 {[%emt 0:00:07]} 3. Bb2 {[%emt 0:00:00]} dxe4 {[%emt 0:00:33]} 4. Nc3 {[%emt 0:00:00]} Nf6 {[%emt 0:00:06]} 5. Qe2 {[%emt 0:00:00]} Be7 {[%emt 0:01:22]} 6. O-O-O {[%emt 0:00:32]} a5 {[%emt 0:08:40]} 7. a4 {[%emt 0:00:06]} O-O {[%emt 0:01:38]} 8. Nxe4 {[%emt 0:00:19]} b6 {[%emt 0:03:11]} 9. Qf3 {[%emt 0:03:29]} Nxe4 {[%emt 0:06:21]} 10. Qxe4 {[%emt 0:00:05]} Qd5 {[%emt 0:10:13]} 11. Qg4 {[%emt 0:00:21]} e5 {[%emt 0:01:27]} 12. Qh5 {[%emt 0:11:41]} Nc6 {[%emt 0:06:39]} 13. d4 {[%emt 0:13:43]} Qe4 {[%emt 0:15:10]} 14. Bd3 {[%emt 0:00:06]} Qf4+ {[%emt 0:00:05]} 15. Kb1 {[%emt 0:00:04]} g6 {[%emt 0:00:15]} 16. Qe2 {[%emt 0:03:26]} Nxd4 {[%emt 0:17:08]} 17. Bxd4 {[%emt 0:00:13]} Qxd4 {[%emt 0:00:09]} 18. Be4 {[%emt 0:00:02]} Qb4 {[%emt 0:01:34]} 19. Bxa8 {[%emt 0:01:04]} Bf5 {[%emt 0:00:15]} 20. Bd5 {[%emt 0:00:37]} c6 {[%emt 0:05:29]} 21. g4 {[%emt 0:01:08]} Bxg4 {[%emt 0:01:53]} 22. Bf3 {[%emt 0:00:04]} Bf5 {[%emt 0:00:42]} 23. Qc4 {[%emt 0:00:07]} Qa3 {[%emt 0:01:29]} 24. Ne2 {[%emt 0:03:17]} b5 {[%emt 0:03:03]} 25. Qc3 {[%emt 0:01:53]} bxa4 {[%emt 0:00:51]} 26. b4 {[%emt 0:01:51]} axb4 {[%emt 0:04:43]} 27. Qxa3 {[%emt 0:00:09]} bxa3 {[%emt 0:00:07]} 28. Nc3 {[%emt 0:05:58]} Rb8+ {[%emt 0:01:32]} 29. Ka1 {[%emt 0:00:27]} Bxc2 {[%emt 0:03:43]} 30. Rd7 {[%emt 0:03:23]} Bc5 {[%emt 0:01:00]} 31. Rc1 {[%emt 0:05:07]} Bf5 {[%emt 0:01:32]} 32. Rc7 {[%emt 0:00:02]} Bd4 {[%emt 0:02:26]} 33. Bxc6 {[%emt 0:03:46]} Be6 {[%emt 0:00:22]} 34. Be4 {[%emt 0:03:56]} Rb2 {[%emt 0:01:00]} 35. Rc2 {[%emt 0:20:26]} Rb3 {[%emt 0:00:07]} 36. f3 {[%emt 0:05:50]} Kg7 {[%emt 0:00:16]} 37. h4 {[%emt 0:00:40]} h5 {[%emt 0:00:06]} 38. Rc1 {[%emt 0:01:56]} Rb2 {[%emt 0:00:06]} 39. Bb1 {[%emt 0:03:27]} Rh2 {[%emt 0:00:29]} 40. Rc6 {[%emt 0:00:00]} Bb3 {[%emt 0:00:44]} 41. Bd3 {[%emt 0:10:14]} Rxh4 {[%emt 0:05:24]} 42. Kb1 {[%emt 0:00:45]} Rh2 {[%emt 0:02:59]} 43. Bc2 {[%emt 0:00:03]} h4 {[%emt 0:00:42]} 44. Na2 {[%emt 0:00:25]} h3 {[%emt 0:00:33]} 45. Nb4 {[%emt 0:00:16]} Rg2 {[%emt 0:01:33]} 46. f4 {[%emt 0:00:17]} h2 {[%emt 0:00:33]} 47. fxe5 {[%emt 0:00:14]} Bg1 {[%emt 0:03:09]} 0-1

[Event "BL 2016-17"]
[Site "St. Veit/Glan"]
[Date "2017.03.25"]
[Round "7"]
[White "Hebesberger, Thomas"]
[Black "Kuntner, Reinhard"]
[Result "1/2-1/2"]
[ECO "A04"]
[WhiteElo "2299"]
[BlackElo "2021"]
[Annotator "NA"]
[PlyCount "81"]
[EventDate "2017.??.??"]
[EventType "team-tourn"]
[EventCountry "AUT"]
[SourceTitle "playchess.com"]
[Source "ChessBase"]
[SourceQuality "1"]
[WhiteTeam "St. Veit"]
[BlackTeam "Nickelsdorf"]
[TimeControl "40/5400+30:1800+30"]

1. Nf3 {[%emt 0:00:00]} c5 {[%emt 0:00:12]} 2. e3 {[%emt 0:00:02]} e6 {[%emt 0:00:59]} 3. b3 {[%emt 0:00:29]} Nf6 {[%emt 0:00:14]} 4. Bb2 {[%emt 0:00:10]} Be7 {[%emt 0:00:58]} 5. c4 {[%emt 0:00:42]} O-O {[%emt 0:01:12]} 6. g3 {[%emt 0:01:01]} Nc6 {[%emt 0:00:44]} 7. Bg2 {[%emt 0:00:05]} d5 {[%emt 0:02:43]} 8. O-O {[%emt 0:00:48]} d4 {[%emt 0:10:39]} 9. exd4 {[%emt 0:00:14]} cxd4 {[%emt 0:00:02]} 10. Re1 {[%emt 0:00:08]} Ne8 {[%emt 0:05:20]} 11. Ne5 {[%emt 0:04:38]} Nxe5 {[%emt 0:02:24]} 12. Rxe5 {[%emt 0:00:01]} f6 {[%emt 0:00:51]} 13. Re1 {[%emt 0:00:26]} Nc7 {[%emt 0:03:34]} 14. d3 {[%emt 0:04:01]} Rb8 {[%emt 0:09:17]} 15. Ba3 {[%emt 0:16:05]} Bxa3 {[%emt 0:07:29]} 16. Nxa3 {[%emt 0:00:08]} Qd6 {[%emt 0:00:10]} 17. Qc1 {[%emt 0:06:50]} b6 {[%emt 0:04:44]} 18. Nc2 {[%emt 0:01:09]} Na6 {[%emt 0:11:21]} 19. Qb2 {[%emt 0:07:05]} e5 {[%emt 0:03:14]} 20. b4 {[%emt 0:05:06]} Bf5 {[%emt 0:04:30]} 21. Red1 {[%emt 0:04:45]} Nc7 {[%emt 0:06:20]} 22. Rac1 {[%emt 0:04:32]} Bg6 {[%emt 0:02:27]} 23. a3 {[%emt 0:04:07]} Kh8 {[%emt 0:00:32]} 24. Ne1 {[%emt 0:02:33]} Ne6 {[%emt 0:04:56]} 25. Nf3 {[%emt 0:06:31]} h6 {[%emt 0:10:22]} 26. Qe2 {[%emt 0:04:32]} Bh7 {[%emt 0:00:56]} 27. Re1 {[%emt 0:04:39]} Rbe8 {[%emt 0:00:19]} 28. Nd2 {[%emt 0:00:33]} Qc7 {[%emt 0:03:04]} 29. Nb3 {[%emt 0:09:23]} Qb8 {[%emt 0:00:32]} 30. Bh3 {[%emt 0:02:44]} Ng5 {[%emt 0:00:35]} 31. Bg2 {[%emt 0:00:24]} Ne6 {[%emt 0:00:37]} 32. Be4 {[%emt 0:01:28]} Bxe4 {[%emt 0:00:52]} 33. Qxe4 {[%emt 0:00:17]} Ng5 {[%emt 0:00:15]} 34. Qg2 {[%emt 0:00:15]} f5 {[%emt 0:00:29]} 35. h4 {[%emt 0:00:38]} Nh7 {[%emt 0:01:03]} 36. c5 {[%emt 0:00:48]} f4 {[%emt 0:01:26]} 37. c6 {[%emt 0:03:28]} Qc8 {[%emt 0:00:37]} 38. Nd2 {[%emt 0:00:59]} Rf6 {[%emt 0:01:49]} 39. c7 {[%emt 0:01:33]} Rf7 {[%emt 0:01:10]} 40. Qc6 {[%emt 0:00:00]} Ref8 {[%emt 0:00:38]} 41. Ne4 {[%emt 0:03:44]} 1/2-1/2

[Event "BL 2016-17"]
[Site "St. Veit/Glan"]
[Date "2017.03.25"]
[Round "7"]
[White "Gerhold, Michael"]
[Black "Herbrechtsmeier, Christof"]
[Result "1/2-1/2"]
[ECO "A05"]
[WhiteElo "2221"]
[BlackElo "2228"]
[Annotator "NA"]
[PlyCount "103"]
[EventDate "2017.??.??"]
[EventType "team-tourn"]
[EventCountry "AUT"]
[SourceTitle "playchess.com"]
[Source "ChessBase"]
[SourceQuality "1"]
[WhiteTeam "Absam"]
[BlackTeam "Bregenz"]
[TimeControl "40/5400+30:1800+30"]

1. Nf3 {[%emt 0:00:00]} Nf6 {[%emt 0:00:07]} 2. c4 {[%emt 0:00:00]} g6 {[%emt 0:00:10]} 3. Nc3 {[%emt 0:00:08]} d5 {[%emt 0:00:05]} 4. cxd5 {[%emt 0:01:17]} Nxd5 {[%emt 0:00:07]} 5. Qa4+ {[%emt 0:00:11]} Nc6 {[%emt 0:00:48]} 6. Ne5 {[%emt 0:02:37]} Qd6 {[%emt 0:01:10]} 7. Nxc6 {[%emt 0:02:34]} Qxc6 {[%emt 0:00:35]} 8. Qxc6+ {[%emt 0:00:19]} bxc6 {[%emt 0:00:07]} 9. g3 {[%emt 0:00:20]} Be6 {[%emt 0:02:04]} 10. Bg2 {[%emt 0:00:08]} O-O-O {[%emt 0:00:15]} 11. a3 {[%emt 0:17:22]} Nxc3 {[%emt 0:01:34]} 12. dxc3 {[%emt 0:02:50]} Bd5 {[%emt 0:03:39]} 13. O-O {[%emt 0:00:31]} e5 {[%emt 0:06:44]} 14. Bg5 {[%emt 0:13:21]} Rd6 {[%emt 0:01:53]} 15. Rfd1 {[%emt 0:03:00]} h6 {[%emt 0:06:49]} 16. Be3 {[%emt 0:00:24]} Kb7 {[%emt 0:05:23]} 17. Bc5 {[%emt 0:09:13]} Rd8 {[%emt 0:00:55]} 18. Bxa7 {[%emt 0:04:16]} Be7 {[%emt 0:04:23]} 19. Be3 {[%emt 0:00:17]} Bb3 {[%emt 0:00:27]} 20. Rxd8 {[%emt 0:00:40]} Rxd8 {[%emt 0:00:06]} 21. h4 {[%emt 0:17:17]} g5 {[%emt 0:00:46]} 22. hxg5 {[%emt 0:00:56]} Bxg5 {[%emt 0:00:22]} 23. f4 {[%emt 0:01:16]} exf4 {[%emt 0:00:26]} 24. gxf4 {[%emt 0:00:23]} Bf6 {[%emt 0:01:50]} 25. Bf3 {[%emt 0:01:28]} Rg8+ {[%emt 0:16:12]} 26. Kh2 {[%emt 0:02:02]} Re8 {[%emt 0:04:55]} 27. Bd4 {[%emt 0:01:22]} Bxd4 {[%emt 0:01:15]} 28. cxd4 {[%emt 0:00:09]} f5 {[%emt 0:00:32]} 29. Kg3 {[%emt 0:00:45]} Bd5 {[%emt 0:02:10]} 30. Kf2 {[%emt 0:01:21]} Kb6 {[%emt 0:10:29]} 31. Rh1 {[%emt 0:02:44]} Re6 {[%emt 0:00:46]} 32. Rg1 {[%emt 0:01:42]} Kb5 {[%emt 0:02:53]} 33. Rg7 {[%emt 0:00:17]} Kc4 {[%emt 0:00:59]} 34. Bxd5+ {[%emt 0:04:45]} cxd5 {[%emt 0:01:54]} 35. Rxc7+ {[%emt 0:04:55]} Kxd4 {[%emt 0:00:11]} 36. Rc3 {[%emt 0:00:56]} Rb6 {[%emt 0:01:48]} 37. Rc2 {[%emt 0:00:36]} Ke4 {[%emt 0:02:20]} 38. e3 {[%emt 0:01:39]} d4 {[%emt 0:03:28]} 39. exd4 {[%emt 0:00:07]} Kxf4 {[%emt 0:00:40]} 40. b4 {[%emt 0:00:00]} Ra6 {[%emt 0:04:41]} 41. Rc3 {[%emt 0:10:21]} Ke4 {[%emt 0:02:01]} 42. b5 {[%emt 0:00:26]} Ra8 {[%emt 0:02:49]} 43. Rb3 {[%emt 0:11:43]} Kxd4 {[%emt 0:06:13]} 44. b6 {[%emt 0:00:11]} Kc5 {[%emt 0:04:39]} 45. a4 {[%emt 0:01:07]} Kc6 {[%emt 0:01:20]} 46. a5 {[%emt 0:00:16]} Kb7 {[%emt 0:00:21]} 47. Rb5 {[%emt 0:00:20]} Rf8 {[%emt 0:01:15]} 48. Kg3 {[%emt 0:03:29]} h5 {[%emt 0:01:32]} 49. Rb4 {[%emt 0:01:29]} Rf7 {[%emt 0:04:53]} 50. Ra4 {[%emt 0:01:08]} Ka6 {[%emt 0:01:16]} 51. Rb4 {[%emt 0:02:29]} Kb7 {[%emt 0:02:10]} 52. Ra4 1/2-1/2

[Event "BL 2016-17"]
[Site "St. Veit/Glan"]
[Date "2017.03.25"]
[Round "7"]
[White "Burschowsky, Matthias"]
[Black "Schneider-Zinner, Harald"]
[Result "0-1"]
[ECO "A13"]
[WhiteElo "2192"]
[BlackElo "2382"]
[Annotator "NA"]
[PlyCount "108"]
[EventDate "2017.??.??"]
[EventType "team-tourn"]
[EventCountry "AUT"]
[SourceTitle "playchess.com"]
[Source "ChessBase"]
[SourceQuality "1"]
[WhiteTeam "Hohenems"]
[BlackTeam "Wien-SK Ottakring"]
[TimeControl "40/5400+30:1800+30"]

1. c4 {[%emt 0:00:00]} e6 {[%emt 0:00:05]} 2. Nc3 {[%emt 0:00:00]} d5 {[%emt 0:00:06]} 3. e3 {[%emt 0:00:00]} Nf6 {[%emt 0:00:38]} 4. Nf3 {[%emt 0:00:14]} c6 {[%emt 0:03:44]} 5. b3 {[%emt 0:00:33]} Nbd7 {[%emt 0:00:06]} 6. Qc2 {[%emt 0:00:33]} b6 {[%emt 0:01:53]} 7. cxd5 {[%emt 0:15:22]} exd5 {[%emt 0:02:49]} 8. Be2 $11 {[%emt 0:02:20]} Bb7 {[%emt 0:05:49]} 9. Bb2 {[%emt 0:02:12]} Bd6 {[%emt 0:01:49]} 10. Rc1 {[%emt 0:08:18]} O-O {[%emt 0:00:45]} 11. O-O {[%emt 0:00:21]} Re8 {[%emt 0:01:29]} 12. Qb1 {[%emt 0:13:51]} Qe7 {[%emt 0:20:17]} 13. Qa1 {[%emt 0:08:33]} Rad8 {[%emt 0:06:10]} 14. a3 {[%emt 0:20:42]} Bb8 {[%emt 0:07:46]} 15. b4 {[%emt 0:00:52]} Qd6 {[%emt 0:01:00]} 16. g3 {[%emt 0:01:46]} a6 {[%emt 0:05:15]} 17. Rc2 {[%emt 0:04:16]} c5 {[%emt 0:01:37]} 18. bxc5 {[%emt 0:00:23]} bxc5 {[%emt 0:01:57]} 19. d4 {[%emt 0:00:08]} c4 {[%emt 0:02:35]} 20. a4 {[%emt 0:00:22]} Ng4 {[%emt 0:03:19]} 21. Nh4 {[%emt 0:03:45]} Ndf6 {[%emt 0:06:49]} 22. Ba3 {[%emt 0:00:44]} Qe6 {[%emt 0:00:47]} 23. Rb2 {[%emt 0:02:00]} Bc6 {[%emt 0:01:56]} 24. Ng2 {[%emt 0:00:54]} g5 {[%emt 0:01:07]} 25. Qd1 {[%emt 0:00:55]} h5 {[%emt 0:00:57]} 26. Rb6 {[%emt 0:00:59]} Bc7 {[%emt 0:00:32]} 27. Rxa6 {[%emt 0:00:16]} Ra8 {[%emt 0:01:34]} 28. Rxa8 {[%emt 0:00:17]} Rxa8 {[%emt 0:00:13]} 29. Bc5 {[%emt 0:03:07]} Ba5 {[%emt 0:08:59]} 30. Nb5 {[%emt 0:01:28]} Ne4 {[%emt 0:01:10]} 31. f3 {[%emt 0:01:43]} Nxe3 {[%emt 0:00:38]} 32. Nxe3 {[%emt 0:01:43]} Nxc5 {[%emt 0:00:02]} 33. Nxc4 {[%emt 0:01:27]} dxc4 {[%emt 0:00:42]} 34. dxc5 {[%emt 0:00:20]} Rd8 {[%emt 0:02:21]} 35. Qc1 {[%emt 0:01:34]} Rd2 {[%emt 0:00:18]} 36. Rf2 {[%emt 0:01:12]} Qe3 {[%emt 0:03:04]} 37. Qxc4 {[%emt 0:00:53]} Bd5 {[%emt 0:02:35]} 38. Qc1 {[%emt 0:02:02]} Rxe2 {[%emt 0:01:49]} 39. Qxe3 {[%emt 0:00:06]} Rxe3 {[%emt 0:00:01]} 40. Rc2 {[%emt 0:00:00]} Rxf3 {[%emt 0:01:29]} 41. Nd4 {[%emt 0:04:27]} Rc3 {[%emt 0:02:21]} 42. Rb2 {[%emt 0:00:15]} Rxc5 {[%emt 0:02:54]} 43. Nf5 {[%emt 0:00:16]} Kh7 {[%emt 0:02:04]} 44. h4 {[%emt 0:03:10]} Be4 {[%emt 0:03:11]} 45. Nd6 {[%emt 0:00:36]} Rc1+ {[%emt 0:04:05]} 46. Kf2 {[%emt 0:00:06]} Rc2+ {[%emt 0:00:48]} 47. Rxc2 {[%emt 0:00:04]} Bxc2 {[%emt 0:00:04]} 48. Nxf7 {[%emt 0:03:11]} g4 {[%emt 0:01:17]} 49. Ng5+ {[%emt 0:02:53]} Kg6 {[%emt 0:00:41]} 50. Ne6 {[%emt 0:00:27]} Bb6+ {[%emt 0:00:39]} 51. Kg2 {[%emt 0:00:08]} Bxa4 {[%emt 0:00:15]} 52. Nf4+ {[%emt 0:00:07]} Kh6 {[%emt 0:00:07]} 53. Nd5 {[%emt 0:00:16]} Bc6 {[%emt 0:00:48]} 54. Kh2 {[%emt 0:00:04]} Bg1+ {[%emt 0:00:09]} 0-1

[Event "BL 2016-17"]
[Site "St. Veit/Glan"]
[Date "2017.03.25"]
[Round "7"]
[White "Bachofner, Andreas"]
[Black "Hoelzl, Franz"]
[Result "0-1"]
[ECO "B20"]
[WhiteElo "2154"]
[BlackElo "2318"]
[Annotator "NA"]
[PlyCount "80"]
[EventDate "2017.??.??"]
[EventType "team-tourn"]
[EventCountry "AUT"]
[SourceTitle "playchess.com"]
[Source "ChessBase"]
[SourceQuality "1"]
[WhiteTeam "Nickelsdorf"]
[BlackTeam "St. Veit"]
[TimeControl "40/5400+30:1800+30"]

1. e4 {[%emt 0:00:00]} c5 {[%emt 0:00:05]} 2. c4 {[%emt 0:00:14]} g6 {[%emt 0:01:01]} 3. Nc3 {[%emt 0:00:16]} Bg7 {[%emt 0:00:07]} 4. g3 {[%emt 0:00:20]} Nc6 {[%emt 0:00:15]} 5. Bg2 {[%emt 0:00:19]} e6 {[%emt 0:00:28]} 6. Nge2 {[%emt 0:00:45]} h5 {[%emt 0:00:42]} 7. h3 {[%emt 0:01:28]} Nge7 {[%emt 0:01:47]} 8. d3 {[%emt 0:00:24]} a6 {[%emt 0:01:40]} 9. O-O {[%emt 0:11:21]} Nd4 {[%emt 0:03:59]} 10. Bg5 {[%emt 0:09:49]} d6 {[%emt 0:03:46]} 11. Rb1 {[%emt 0:02:44]} Rb8 {[%emt 0:05:07]} 12. b4 {[%emt 0:13:39]} cxb4 {[%emt 0:05:43]} 13. Nxd4 {[%emt 0:01:00]} Bxd4 {[%emt 0:00:29]} 14. Ne2 {[%emt 0:00:19]} Bg7 {[%emt 0:00:23]} 15. Qa4+ {[%emt 0:04:46]} b5 {[%emt 0:04:41]} 16. Qxb4 {[%emt 0:01:25]} a5 {[%emt 0:01:31]} 17. Qd2 {[%emt 0:03:23]} b4 {[%emt 0:00:35]} 18. Qf4 {[%emt 0:10:10]} e5 {[%emt 0:04:22]} 19. Qh4 {[%emt 0:02:00]} Rf8 {[%emt 0:02:28]} 20. Nc3 {[%emt 0:08:21]} f6 {[%emt 0:01:44]} 21. Be3 {[%emt 0:00:03]} Rh8 {[%emt 0:07:36]} 22. Nd5 {[%emt 0:05:21]} Nxd5 {[%emt 0:05:43]} 23. exd5 {[%emt 0:01:06]} Bf5 {[%emt 0:00:09]} 24. f4 {[%emt 0:04:14]} Bxd3 {[%emt 0:00:40]} 25. Rbe1 {[%emt 0:00:21]} f5 {[%emt 0:02:35]} 26. Qxd8+ {[%emt 0:00:11]} Kxd8 {[%emt 0:00:01]} 27. Rf2 {[%emt 0:00:19]} Re8 {[%emt 0:01:25]} 28. Bf1 {[%emt 0:03:25]} exf4 {[%emt 0:04:30]} 29. Rxf4 {[%emt 0:00:56]} Bxf1 {[%emt 0:04:54]} 30. Kxf1 {[%emt 0:00:03]} Bh6 {[%emt 0:03:43]} 31. Rf3 {[%emt 0:00:07]} Bxe3 {[%emt 0:00:04]} 32. Rfxe3 {[%emt 0:00:10]} Rxe3 {[%emt 0:00:04]} 33. Rxe3 {[%emt 0:00:06]} a4 {[%emt 0:00:00]} 34. Re1 {[%emt 0:01:57]} Kc7 {[%emt 0:01:07]} 35. Rc1 {[%emt 0:05:24]} Kb6 {[%emt 0:01:51]} 36. Ke2 {[%emt 0:00:29]} Kc5 {[%emt 0:00:05]} 37. Kd3 {[%emt 0:00:06]} b3 {[%emt 0:02:21]} 38. Rb1 {[%emt 0:00:05]} Rb4 {[%emt 0:00:11]} 39. axb3 {[%emt 0:06:28]} Rxb3+ {[%emt 0:00:50]} 40. Rxb3 {[%emt 0:00:00]} axb3 {[%emt 0:00:25] Kd4+} 0-1

[Event "BL 2016-17"]
[Site "Germany"]
[Date "2017.02.18"]
[Round "7"]
[White "Nothnagel, Marian Can"]
[Black "Thiede, Lars"]
[Result "1/2-1/2"]
[ECO "C66"]
[WhiteElo "2107"]
[BlackElo "2422"]
[Annotator "RC"]
[PlyCount "83"]
[EventDate "2017.??.??"]
[EventType "team-tourn"]
[EventCountry "GER"]
[SourceTitle "playchess.com"]
[Source "ChessBase"]
[SourceQuality "1"]
[WhiteTeam "Griesheim"]
[BlackTeam "SF Berlin"]
[TimeControl "40/6000+30:3000+30"]

1. e4 {[%emt 0:00:00]} d6 {[%emt 0:00:15]} 2. d4 {[%emt 0:00:00]} Nf6 {[%emt 0:00:08]} 3. Nc3 {[%emt 0:00:00]} e5 {[%emt 0:00:07]} 4. Nf3 {[%emt 0:00:01]} Nc6 {[%emt 0:00:13]} 5. Bb5 {[%emt 0:05:11]} Bd7 {[%emt 0:00:22]} 6. O-O {[%emt 0:01:06]} Be7 {[%emt 0:00:34]} 7. Re1 {[%emt 0:08:36]} exd4 {[%emt 0:00:10]} 8. Nxd4 {[%emt 0:00:05]} Nxd4 {[%emt 0:04:30]} 9. Qxd4 {[%emt 0:00:33]} O-O {[%emt 0:00:24]} 10. Bg5 {[%emt 0:07:06]} Bxb5 {[%emt 0:09:49]} 11. Nxb5 {[%emt 0:00:07]} h6 {[%emt 0:00:14]} 12. Bh4 {[%emt 0:05:43]} a6 {[%emt 0:00:47]} 13. Nc3 {[%emt 0:00:05]} Ne8 {[%emt 0:13:52]} 14. Bxe7 {[%emt 0:00:30]} Qxe7 {[%emt 0:00:15]} 15. Nd5 {[%emt 0:00:07]} Qd8 {[%emt 0:00:15]} 16. Rad1 {[%emt 0:00:06]} Nf6 {[%emt 0:19:27]} 17. Nxf6+ {[%emt 0:00:07]} Qxf6 {[%emt 0:00:07]} 18. Qxf6 {[%emt 0:00:02]} gxf6 {[%emt 0:00:09]} 19. Rd5 {[%emt 0:06:33]} Rfe8 {[%emt 0:03:11]} 20. f3 {[%emt 0:00:10]} Re5 {[%emt 0:05:09]} 21. Kf2 {[%emt 0:05:30]} Rae8 {[%emt 0:04:33]} 22. g4 {[%emt 0:17:27]} Kg7 {[%emt 0:05:27]} 23. c4 {[%emt 0:06:37]} b5 {[%emt 0:05:35]} 24. Rc1 {[%emt 0:13:42]} bxc4 {[%emt 0:08:09]} 25. Rxc4 {[%emt 0:00:41]} Rxd5 {[%emt 0:01:17]} 26. exd5 {[%emt 0:00:06]} Rb8 {[%emt 0:00:08]} 27. b3 {[%emt 0:07:41]} Rb5 {[%emt 0:02:15]} 28. Rxc7 {[%emt 0:00:15]} Rxd5 {[%emt 0:00:06]} 29. Ke3 {[%emt 0:00:22]} a5 {[%emt 0:05:00]} 30. Ra7 {[%emt 0:07:09]} f5 {[%emt 0:03:12]} 31. h3 {[%emt 0:02:11]} fxg4 {[%emt 0:07:03]} 32. hxg4 {[%emt 0:00:06]} Kf6 {[%emt 0:01:07]} 33. Ke4 {[%emt 0:03:00]} Re5+ {[%emt 0:02:45]} 34. Kd4 {[%emt 0:00:08]} h5 {[%emt 0:02:37]} 35. gxh5 {[%emt 0:01:26]} Rxh5 {[%emt 0:00:13]} 36. Ra6 {[%emt 0:01:07]} Ke6 {[%emt 0:00:31]} 37. Ke4 {[%emt 0:00:10]} Rb5 {[%emt 0:01:17]} 38. Ra7 {[%emt 0:03:36]} Rb4+ {[%emt 0:01:20]} 39. Ke3 {[%emt 0:00:06]} Rb5 {[%emt 0:00:17]} 40. Ke4 {[%emt 0:01:13]} Re5+ {[%emt 0:56:23]} 41. Kf4 {[%emt 0:55:49]} Rb5 {[%emt 0:01:11]} 42. Ke4 {Ke5+} 1/2-1/2